{"text_format":"3","workbook":"xlsx","n_sheets":3,"sheets":["Registo de Quilometragem","Dados do Registo","cálculos"],"not_rendered":{"charts":1,"defined_names":17},"read":"whole","date_system":"1900"}

{"sheet":"Registo de Quilometragem","index":0,"n_rows":29,"n_cols":5,"rows_kept":29,"merged":[[0,1,1,6]]}
[null,"REGISTO DE QUILOMETRAGEM"]
{"$rows_empty":9}
[null,null,"REEMBOLSÁVEL",null,"Total"]
[null,null,"QUILÓMETROS",null,"REEMBOLSO"]
[]
[]
[]
[]
[null,null,"2012-05-01",null,"2012-05-10"]
[]
[null,null,"PERÍODO",null,"PERÍODO"]
[null,null,"INÍCIO",null,"FIM"]
[]
[]
[]
[]
[]
[null,null,54,null,{"v":9800,"d":"9,800"}]
[]
[null,null,"REEMBOLSO",null,"COMBUSTÍVEL ANTERIOR"]
[null,null,"Cênt./Quilómetro",null,"CONTA-QUILÓMETROS"]

{"sheet":"Dados do Registo","index":1,"n_rows":19,"n_cols":15,"rows_kept":19,"merged":[[0,1,1,5]]}
[null,"REGISTO DE QUILOMETRAGEM"]
[{"$nulls":14}," "]
[]
[]
[null,"DATA","ATIVIDADE","CONTA KM 1","LOCALIZAÇÃO","CONTA KM 2","DESTINO","REEMBOLSO","LITROS","CUSTO","QUILÓMETROS","Km/L","CÊNT./QUILÓMETRO","NOTAS"]
[null,"2012-05-01","Viagem",{"v":10123,"d":"10,123"},"Lisboa - Rua Principal",{"v":10130,"d":"10,130"},null,null,15.56,{"v":64.11,"d":"64.11 €"},{"$f":"quilómetros","v":7},{"$f":"IF(OR(LEN(dados[[#This Row],[CONTA KM 2]]),dados[[#This Row],[CONTA KM 1]]=\"\"),\"\",IFERROR(dados[[#This Row],[QUILÓMETROS]]/dados[[#This Row],[LITROS]],\"\"))","v":""},{"$f":"IF(dados[[#This Row],[Km/L]]=\"\",\"\",100*dados[[#This Row],[CUSTO]]/dados[[#This Row],[QUILÓMETROS]])","v":""}]
[null,"2012-05-01","Viagem",{"v":10130,"d":"10,130"},"Escritório",{"v":10200,"d":"10,200"},"Rua da Cerejeira","Sim",null,"",{"$f":"quilómetros","v":70},{"$f":"IF(OR(LEN(dados[[#This Row],[CONTA KM 2]]),dados[[#This Row],[CONTA KM 1]]=\"\"),\"\",IFERROR(dados[[#This Row],[QUILÓMETROS]]/dados[[#This Row],[LITROS]],\"\"))","v":""},{"$f":"IF(dados[[#This Row],[Km/L]]=\"\",\"\",100*dados[[#This Row],[CUSTO]]/dados[[#This Row],[QUILÓMETROS]])","v":""}]
[null,"2012-05-01","Viagem",{"v":10200,"d":"10,200"},"Cascais",{"v":10285,"d":"10,285"},"Escritório","Sim",null,"",{"$f":"quilómetros","v":85},{"$f":"IF(OR(LEN(dados[[#This Row],[CONTA KM 2]]),dados[[#This Row],[CONTA KM 1]]=\"\"),\"\",IFERROR(dados[[#This Row],[QUILÓMETROS]]/dados[[#This Row],[LITROS]],\"\"))","v":""},{"$f":"IF(dados[[#This Row],[Km/L]]=\"\",\"\",100*dados[[#This Row],[CUSTO]]/dados[[#This Row],[QUILÓMETROS]])","v":""}]
[null,"2012-05-02","Viagem",{"v":10285,"d":"10,285"},"Escritório",{"v":10450,"d":"10,450"},"Sintra","Sim",null,"",{"$f":"quilómetros","v":165},{"$f":"IF(OR(LEN(dados[[#This Row],[CONTA KM 2]]),dados[[#This Row],[CONTA KM 1]]=\"\"),\"\",IFERROR(dados[[#This Row],[QUILÓMETROS]]/dados[[#This Row],[LITROS]],\"\"))","v":""},{"$f":"IF(dados[[#This Row],[Km/L]]=\"\",\"\",100*dados[[#This Row],[CUSTO]]/dados[[#This Row],[QUILÓMETROS]])","v":""}]
[null,"2012-05-02","Combustível",{"v":10450,"d":"10,450"},"Amadora",{"$nulls":3},{"v":11.2,"d":"11.20"},{"v":55.42,"d":"55.42 €"},{"$f":"quilómetros","v":650},{"$f":"IF(OR(LEN(dados[[#This Row],[CONTA KM 2]]),dados[[#This Row],[CONTA KM 1]]=\"\"),\"\",IFERROR(dados[[#This Row],[QUILÓMETROS]]/dados[[#This Row],[LITROS]],\"\"))","v":{"v":58.03571428571429,"d":"58.0"}},{"$f":"IF(dados[[#This Row],[Km/L]]=\"\",\"\",100*dados[[#This Row],[CUSTO]]/dados[[#This Row],[QUILÓMETROS]])","v":{"v":8.526153846153846,"d":"8.5"}}]
[null,"2012-05-02","Viagem",{"v":10500,"d":"10,500"},"Sintra",{"v":10518,"d":"10,518"},"Escritório","Sim",null,"",{"$f":"quilómetros","v":18},{"$f":"IF(OR(LEN(dados[[#This Row],[CONTA KM 2]]),dados[[#This Row],[CONTA KM 1]]=\"\"),\"\",IFERROR(dados[[#This Row],[QUILÓMETROS]]/dados[[#This Row],[LITROS]],\"\"))","v":""},{"$f":"IF(dados[[#This Row],[Km/L]]=\"\",\"\",100*dados[[#This Row],[CUSTO]]/dados[[#This Row],[QUILÓMETROS]])","v":""}]
[null,"2012-05-03","Viagem",{"v":10518,"d":"10,518"},"Escritório",{"v":10745,"d":"10,745"},"Escritório","Sim",null,"",{"$f":"quilómetros","v":227},{"$f":"IF(OR(LEN(dados[[#This Row],[CONTA KM 2]]),dados[[#This Row],[CONTA KM 1]]=\"\"),\"\",IFERROR(dados[[#This Row],[QUILÓMETROS]]/dados[[#This Row],[LITROS]],\"\"))","v":""},{"$f":"IF(dados[[#This Row],[Km/L]]=\"\",\"\",100*dados[[#This Row],[CUSTO]]/dados[[#This Row],[QUILÓMETROS]])","v":""}]
[null,"2012-05-04","Combustível",{"v":10745,"d":"10,745"},"Lisboa - Rua Principal",{"$nulls":3},{"v":16.6,"d":"16.60"},{"v":69.24,"d":"69.24 €"},{"$f":"quilómetros","v":295},{"$f":"IF(OR(LEN(dados[[#This Row],[CONTA KM 2]]),dados[[#This Row],[CONTA KM 1]]=\"\"),\"\",IFERROR(dados[[#This Row],[QUILÓMETROS]]/dados[[#This Row],[LITROS]],\"\"))","v":{"v":17.771084337349397,"d":"17.8"}},{"$f":"IF(dados[[#This Row],[Km/L]]=\"\",\"\",100*dados[[#This Row],[CUSTO]]/dados[[#This Row],[QUILÓMETROS]])","v":{"v":23.471186440677965,"d":"23.5"}}]
[null,"2012-05-04","Viagem",{"v":10745,"d":"10,745"},"Escritório",{"v":10800,"d":"10,800"},"Mafra","Sim",null,"",{"$f":"quilómetros","v":55},{"$f":"IF(OR(LEN(dados[[#This Row],[CONTA KM 2]]),dados[[#This Row],[CONTA KM 1]]=\"\"),\"\",IFERROR(dados[[#This Row],[QUILÓMETROS]]/dados[[#This Row],[LITROS]],\"\"))","v":""},{"$f":"IF(dados[[#This Row],[Km/L]]=\"\",\"\",100*dados[[#This Row],[CUSTO]]/dados[[#This Row],[QUILÓMETROS]])","v":""}]
[null,"2012-05-04","Viagem",{"v":10800,"d":"10,800"},"Mafra",{"v":10875,"d":"10,875"},"Escritório","Sim",null,"",{"$f":"quilómetros","v":75},{"$f":"IF(OR(LEN(dados[[#This Row],[CONTA KM 2]]),dados[[#This Row],[CONTA KM 1]]=\"\"),\"\",IFERROR(dados[[#This Row],[QUILÓMETROS]]/dados[[#This Row],[LITROS]],\"\"))","v":""},{"$f":"IF(dados[[#This Row],[Km/L]]=\"\",\"\",100*dados[[#This Row],[CUSTO]]/dados[[#This Row],[QUILÓMETROS]])","v":""}]
[null,"2012-05-07","Viagem",{"v":10875,"d":"10,875"},"Escritório",{"v":10921,"d":"10,921"},"Rua da Cerejeira","Sim",null,"",{"$f":"quilómetros","v":46},{"$f":"IF(OR(LEN(dados[[#This Row],[CONTA KM 2]]),dados[[#This Row],[CONTA KM 1]]=\"\"),\"\",IFERROR(dados[[#This Row],[QUILÓMETROS]]/dados[[#This Row],[LITROS]],\"\"))","v":""},{"$f":"IF(dados[[#This Row],[Km/L]]=\"\",\"\",100*dados[[#This Row],[CUSTO]]/dados[[#This Row],[QUILÓMETROS]])","v":""}]
[null,"2012-05-07","Viagem",{"v":10921,"d":"10,921"},"Cascais",{"v":10969,"d":"10,969"},"Escritório","Sim",null,"",{"$f":"quilómetros","v":48},{"$f":"IF(OR(LEN(dados[[#This Row],[CONTA KM 2]]),dados[[#This Row],[CONTA KM 1]]=\"\"),\"\",IFERROR(dados[[#This Row],[QUILÓMETROS]]/dados[[#This Row],[LITROS]],\"\"))","v":""},{"$f":"IF(dados[[#This Row],[Km/L]]=\"\",\"\",100*dados[[#This Row],[CUSTO]]/dados[[#This Row],[QUILÓMETROS]])","v":""}]
[null,"2012-05-09","Viagem",{"v":10969,"d":"10,969"},"Escritório",{"v":11000,"d":"11,000"},"Ericeira","Sim",null,"",{"$f":"quilómetros","v":31},{"$f":"IF(OR(LEN(dados[[#This Row],[CONTA KM 2]]),dados[[#This Row],[CONTA KM 1]]=\"\"),\"\",IFERROR(dados[[#This Row],[QUILÓMETROS]]/dados[[#This Row],[LITROS]],\"\"))","v":""},{"$f":"IF(dados[[#This Row],[Km/L]]=\"\",\"\",100*dados[[#This Row],[CUSTO]]/dados[[#This Row],[QUILÓMETROS]])","v":""}]
[null,"2012-05-09","Viagem",{"v":11000,"d":"11,000"},"Ericeira",{"v":11100,"d":"11,100"},"Casa","Não",null,"",{"$f":"quilómetros","v":100},{"$f":"IF(OR(LEN(dados[[#This Row],[CONTA KM 2]]),dados[[#This Row],[CONTA KM 1]]=\"\"),\"\",IFERROR(dados[[#This Row],[QUILÓMETROS]]/dados[[#This Row],[LITROS]],\"\"))","v":""},{"$f":"IF(dados[[#This Row],[Km/L]]=\"\",\"\",100*dados[[#This Row],[CUSTO]]/dados[[#This Row],[QUILÓMETROS]])","v":""}]

{"sheet":"cálculos","index":2,"n_rows":69,"n_cols":13,"rows_kept":69,"hidden":true}
["*** Esta folha deve manter-se oculta ***"]
[]
[]
[]
[]
[{"$nulls":8},{"$f":"OFFSET(I9,,segundoEixo=\"Custo do Combustível\")","v":"Cênt./Quilómetro"}]
[{"$nulls":12},2]
[{"$nulls":7},"Viagem","Combustível","Combustível",null,"Segundo Eixo:  ",{"$f":"REPT(\"Km/L\",M7=1)&REPT(\"Custo do Combustível\",M7=2)","v":"Custo do Combustível"}]
[{"$nulls":7},"Quilómetros Percorridos","Km/L","Cênt./Quilómetro"]
[null,null,"Quilómetros Reembolsáveis:  ",{"$f":"SUMIFS(dados[QUILÓMETROS],dados[REEMBOLSO],\"Sim\",dados[DATA],\">=\"&InícioPeríodo,dados[DATA],\"<=\"&FimPeríodo)","v":820},null,1,{"$f":"InícioPeríodo","v":"2012-05-01"},{"$f":"SUMIFS(dados[QUILÓMETROS],dados[DATA],G10,dados[ATIVIDADE],$H$8)","v":162},{"$f":"IFERROR(AVERAGEIFS(dados[Km/L],dados[DATA],G10,dados[ATIVIDADE],$I$8),NA())","v":{"$error":"#N/A"}},{"$f":"IFERROR(AVERAGEIFS(dados[CÊNT./QUILÓMETRO],dados[DATA],G10,dados[ATIVIDADE],$J$8),NA())","v":{"$error":"#N/A"}}]
[null,null,"Reembolso Total:  ",{"$f":"D10*ReembolsoPorQuilómetro/100","v":{"v":442.8,"d":"442.80 €"}},null,2,{"$f":"G10+1","v":"2012-05-02"},{"$f":"SUMIFS(dados[QUILÓMETROS],dados[DATA],G11,dados[ATIVIDADE],$H$8)","v":183},{"$f":"IFERROR(AVERAGEIFS(dados[Km/L],dados[DATA],G11,dados[ATIVIDADE],$I$8),NA())","v":{"v":58.03571428571429,"d":"58.0"}},{"$f":"IFERROR(AVERAGEIFS(dados[CÊNT./QUILÓMETRO],dados[DATA],G11,dados[ATIVIDADE],$J$8),NA())","v":{"v":8.526153846153846,"d":"8.5"}}]
[{"$nulls":5},3,"2012-05-03",{"$f":"SUMIFS(dados[QUILÓMETROS],dados[DATA],G12,dados[ATIVIDADE],$H$8)","v":227},{"$f":"IFERROR(AVERAGEIFS(dados[Km/L],dados[DATA],G12,dados[ATIVIDADE],$I$8),NA())","v":{"$error":"#N/A"}},{"$f":"IFERROR(AVERAGEIFS(dados[CÊNT./QUILÓMETRO],dados[DATA],G12,dados[ATIVIDADE],$J$8),NA())","v":{"$error":"#N/A"}}]
[{"$nulls":5},4,"2012-05-04",{"$f":"SUMIFS(dados[QUILÓMETROS],dados[DATA],G13,dados[ATIVIDADE],$H$8)","v":130},{"$f":"IFERROR(AVERAGEIFS(dados[Km/L],dados[DATA],G13,dados[ATIVIDADE],$I$8),NA())","v":{"v":17.771084337349397,"d":"17.8"}},{"$f":"IFERROR(AVERAGEIFS(dados[CÊNT./QUILÓMETRO],dados[DATA],G13,dados[ATIVIDADE],$J$8),NA())","v":{"v":23.471186440677965,"d":"23.5"}}]
[{"$nulls":5},5,"2012-05-05",{"$f":"SUMIFS(dados[QUILÓMETROS],dados[DATA],G14,dados[ATIVIDADE],$H$8)","v":0},{"$f":"IFERROR(AVERAGEIFS(dados[Km/L],dados[DATA],G14,dados[ATIVIDADE],$I$8),NA())","v":{"$error":"#N/A"}},{"$f":"IFERROR(AVERAGEIFS(dados[CÊNT./QUILÓMETRO],dados[DATA],G14,dados[ATIVIDADE],$J$8),NA())","v":{"$error":"#N/A"}}]
[{"$nulls":5},6,"2012-05-06",{"$f":"SUMIFS(dados[QUILÓMETROS],dados[DATA],G15,dados[ATIVIDADE],$H$8)","v":0},{"$f":"IFERROR(AVERAGEIFS(dados[Km/L],dados[DATA],G15,dados[ATIVIDADE],$I$8),NA())","v":{"$error":"#N/A"}},{"$f":"IFERROR(AVERAGEIFS(dados[CÊNT./QUILÓMETRO],dados[DATA],G15,dados[ATIVIDADE],$J$8),NA())","v":{"$error":"#N/A"}}]
[{"$nulls":5},7,"2012-05-07",{"$f":"SUMIFS(dados[QUILÓMETROS],dados[DATA],G16,dados[ATIVIDADE],$H$8)","v":94},{"$f":"IFERROR(AVERAGEIFS(dados[Km/L],dados[DATA],G16,dados[ATIVIDADE],$I$8),NA())","v":{"$error":"#N/A"}},{"$f":"IFERROR(AVERAGEIFS(dados[CÊNT./QUILÓMETRO],dados[DATA],G16,dados[ATIVIDADE],$J$8),NA())","v":{"$error":"#N/A"}}]
[{"$nulls":5},8,"2012-05-08",{"$f":"SUMIFS(dados[QUILÓMETROS],dados[DATA],G17,dados[ATIVIDADE],$H$8)","v":0},{"$f":"IFERROR(AVERAGEIFS(dados[Km/L],dados[DATA],G17,dados[ATIVIDADE],$I$8),NA())","v":{"$error":"#N/A"}},{"$f":"IFERROR(AVERAGEIFS(dados[CÊNT./QUILÓMETRO],dados[DATA],G17,dados[ATIVIDADE],$J$8),NA())","v":{"$error":"#N/A"}}]
[{"$nulls":5},9,"2012-05-09",{"$f":"SUMIFS(dados[QUILÓMETROS],dados[DATA],G18,dados[ATIVIDADE],$H$8)","v":131},{"$f":"IFERROR(AVERAGEIFS(dados[Km/L],dados[DATA],G18,dados[ATIVIDADE],$I$8),NA())","v":{"$error":"#N/A"}},{"$f":"IFERROR(AVERAGEIFS(dados[CÊNT./QUILÓMETRO],dados[DATA],G18,dados[ATIVIDADE],$J$8),NA())","v":{"$error":"#N/A"}}]
[{"$nulls":5},10,"2012-05-10",{"$f":"SUMIFS(dados[QUILÓMETROS],dados[DATA],G19,dados[ATIVIDADE],$H$8)","v":0},{"$f":"IFERROR(AVERAGEIFS(dados[Km/L],dados[DATA],G19,dados[ATIVIDADE],$I$8),NA())","v":{"$error":"#N/A"}},{"$f":"IFERROR(AVERAGEIFS(dados[CÊNT./QUILÓMETRO],dados[DATA],G19,dados[ATIVIDADE],$J$8),NA())","v":{"$error":"#N/A"}}]
[{"$nulls":5},11,"2012-05-11",{"$f":"SUMIFS(dados[QUILÓMETROS],dados[DATA],G20,dados[ATIVIDADE],$H$8)","v":0},{"$f":"IFERROR(AVERAGEIFS(dados[Km/L],dados[DATA],G20,dados[ATIVIDADE],$I$8),NA())","v":{"$error":"#N/A"}},{"$f":"IFERROR(AVERAGEIFS(dados[CÊNT./QUILÓMETRO],dados[DATA],G20,dados[ATIVIDADE],$J$8),NA())","v":{"$error":"#N/A"}}]
[{"$nulls":5},12,"2012-05-12",{"$f":"SUMIFS(dados[QUILÓMETROS],dados[DATA],G21,dados[ATIVIDADE],$H$8)","v":0},{"$f":"IFERROR(AVERAGEIFS(dados[Km/L],dados[DATA],G21,dados[ATIVIDADE],$I$8),NA())","v":{"$error":"#N/A"}},{"$f":"IFERROR(AVERAGEIFS(dados[CÊNT./QUILÓMETRO],dados[DATA],G21,dados[ATIVIDADE],$J$8),NA())","v":{"$error":"#N/A"}}]
[{"$nulls":5},13,"2012-05-13",{"$f":"SUMIFS(dados[QUILÓMETROS],dados[DATA],G22,dados[ATIVIDADE],$H$8)","v":0},{"$f":"IFERROR(AVERAGEIFS(dados[Km/L],dados[DATA],G22,dados[ATIVIDADE],$I$8),NA())","v":{"$error":"#N/A"}},{"$f":"IFERROR(AVERAGEIFS(dados[CÊNT./QUILÓMETRO],dados[DATA],G22,dados[ATIVIDADE],$J$8),NA())","v":{"$error":"#N/A"}}]
[{"$nulls":5},14,"2012-05-14",{"$f":"SUMIFS(dados[QUILÓMETROS],dados[DATA],G23,dados[ATIVIDADE],$H$8)","v":0},{"$f":"IFERROR(AVERAGEIFS(dados[Km/L],dados[DATA],G23,dados[ATIVIDADE],$I$8),NA())","v":{"$error":"#N/A"}},{"$f":"IFERROR(AVERAGEIFS(dados[CÊNT./QUILÓMETRO],dados[DATA],G23,dados[ATIVIDADE],$J$8),NA())","v":{"$error":"#N/A"}}]
[{"$nulls":5},15,"2012-05-15",{"$f":"SUMIFS(dados[QUILÓMETROS],dados[DATA],G24,dados[ATIVIDADE],$H$8)","v":0},{"$f":"IFERROR(AVERAGEIFS(dados[Km/L],dados[DATA],G24,dados[ATIVIDADE],$I$8),NA())","v":{"$error":"#N/A"}},{"$f":"IFERROR(AVERAGEIFS(dados[CÊNT./QUILÓMETRO],dados[DATA],G24,dados[ATIVIDADE],$J$8),NA())","v":{"$error":"#N/A"}}]
[{"$nulls":5},16,"2012-05-16",{"$f":"SUMIFS(dados[QUILÓMETROS],dados[DATA],G25,dados[ATIVIDADE],$H$8)","v":0},{"$f":"IFERROR(AVERAGEIFS(dados[Km/L],dados[DATA],G25,dados[ATIVIDADE],$I$8),NA())","v":{"$error":"#N/A"}},{"$f":"IFERROR(AVERAGEIFS(dados[CÊNT./QUILÓMETRO],dados[DATA],G25,dados[ATIVIDADE],$J$8),NA())","v":{"$error":"#N/A"}}]
[{"$nulls":5},17,"2012-05-17",{"$f":"SUMIFS(dados[QUILÓMETROS],dados[DATA],G26,dados[ATIVIDADE],$H$8)","v":0},{"$f":"IFERROR(AVERAGEIFS(dados[Km/L],dados[DATA],G26,dados[ATIVIDADE],$I$8),NA())","v":{"$error":"#N/A"}},{"$f":"IFERROR(AVERAGEIFS(dados[CÊNT./QUILÓMETRO],dados[DATA],G26,dados[ATIVIDADE],$J$8),NA())","v":{"$error":"#N/A"}}]
[{"$nulls":5},18,"2012-05-18",{"$f":"SUMIFS(dados[QUILÓMETROS],dados[DATA],G27,dados[ATIVIDADE],$H$8)","v":0},{"$f":"IFERROR(AVERAGEIFS(dados[Km/L],dados[DATA],G27,dados[ATIVIDADE],$I$8),NA())","v":{"$error":"#N/A"}},{"$f":"IFERROR(AVERAGEIFS(dados[CÊNT./QUILÓMETRO],dados[DATA],G27,dados[ATIVIDADE],$J$8),NA())","v":{"$error":"#N/A"}}]
[{"$nulls":5},19,"2012-05-19",{"$f":"SUMIFS(dados[QUILÓMETROS],dados[DATA],G28,dados[ATIVIDADE],$H$8)","v":0},{"$f":"IFERROR(AVERAGEIFS(dados[Km/L],dados[DATA],G28,dados[ATIVIDADE],$I$8),NA())","v":{"$error":"#N/A"}},{"$f":"IFERROR(AVERAGEIFS(dados[CÊNT./QUILÓMETRO],dados[DATA],G28,dados[ATIVIDADE],$J$8),NA())","v":{"$error":"#N/A"}}]
[{"$nulls":5},20,"2012-05-20",{"$f":"SUMIFS(dados[QUILÓMETROS],dados[DATA],G29,dados[ATIVIDADE],$H$8)","v":0},{"$f":"IFERROR(AVERAGEIFS(dados[Km/L],dados[DATA],G29,dados[ATIVIDADE],$I$8),NA())","v":{"$error":"#N/A"}},{"$f":"IFERROR(AVERAGEIFS(dados[CÊNT./QUILÓMETRO],dados[DATA],G29,dados[ATIVIDADE],$J$8),NA())","v":{"$error":"#N/A"}}]
[{"$nulls":5},21,"2012-05-21",{"$f":"SUMIFS(dados[QUILÓMETROS],dados[DATA],G30,dados[ATIVIDADE],$H$8)","v":0},{"$f":"IFERROR(AVERAGEIFS(dados[Km/L],dados[DATA],G30,dados[ATIVIDADE],$I$8),NA())","v":{"$error":"#N/A"}},{"$f":"IFERROR(AVERAGEIFS(dados[CÊNT./QUILÓMETRO],dados[DATA],G30,dados[ATIVIDADE],$J$8),NA())","v":{"$error":"#N/A"}}]
[{"$nulls":5},22,"2012-05-22",{"$f":"SUMIFS(dados[QUILÓMETROS],dados[DATA],G31,dados[ATIVIDADE],$H$8)","v":0},{"$f":"IFERROR(AVERAGEIFS(dados[Km/L],dados[DATA],G31,dados[ATIVIDADE],$I$8),NA())","v":{"$error":"#N/A"}},{"$f":"IFERROR(AVERAGEIFS(dados[CÊNT./QUILÓMETRO],dados[DATA],G31,dados[ATIVIDADE],$J$8),NA())","v":{"$error":"#N/A"}}]
[{"$nulls":5},23,"2012-05-23",{"$f":"SUMIFS(dados[QUILÓMETROS],dados[DATA],G32,dados[ATIVIDADE],$H$8)","v":0},{"$f":"IFERROR(AVERAGEIFS(dados[Km/L],dados[DATA],G32,dados[ATIVIDADE],$I$8),NA())","v":{"$error":"#N/A"}},{"$f":"IFERROR(AVERAGEIFS(dados[CÊNT./QUILÓMETRO],dados[DATA],G32,dados[ATIVIDADE],$J$8),NA())","v":{"$error":"#N/A"}}]
[{"$nulls":5},24,"2012-05-24",{"$f":"SUMIFS(dados[QUILÓMETROS],dados[DATA],G33,dados[ATIVIDADE],$H$8)","v":0},{"$f":"IFERROR(AVERAGEIFS(dados[Km/L],dados[DATA],G33,dados[ATIVIDADE],$I$8),NA())","v":{"$error":"#N/A"}},{"$f":"IFERROR(AVERAGEIFS(dados[CÊNT./QUILÓMETRO],dados[DATA],G33,dados[ATIVIDADE],$J$8),NA())","v":{"$error":"#N/A"}}]
[{"$nulls":5},25,"2012-05-25",{"$f":"SUMIFS(dados[QUILÓMETROS],dados[DATA],G34,dados[ATIVIDADE],$H$8)","v":0},{"$f":"IFERROR(AVERAGEIFS(dados[Km/L],dados[DATA],G34,dados[ATIVIDADE],$I$8),NA())","v":{"$error":"#N/A"}},{"$f":"IFERROR(AVERAGEIFS(dados[CÊNT./QUILÓMETRO],dados[DATA],G34,dados[ATIVIDADE],$J$8),NA())","v":{"$error":"#N/A"}}]
[{"$nulls":5},26,"2012-05-26",{"$f":"SUMIFS(dados[QUILÓMETROS],dados[DATA],G35,dados[ATIVIDADE],$H$8)","v":0},{"$f":"IFERROR(AVERAGEIFS(dados[Km/L],dados[DATA],G35,dados[ATIVIDADE],$I$8),NA())","v":{"$error":"#N/A"}},{"$f":"IFERROR(AVERAGEIFS(dados[CÊNT./QUILÓMETRO],dados[DATA],G35,dados[ATIVIDADE],$J$8),NA())","v":{"$error":"#N/A"}}]
[{"$nulls":5},27,"2012-05-27",{"$f":"SUMIFS(dados[QUILÓMETROS],dados[DATA],G36,dados[ATIVIDADE],$H$8)","v":0},{"$f":"IFERROR(AVERAGEIFS(dados[Km/L],dados[DATA],G36,dados[ATIVIDADE],$I$8),NA())","v":{"$error":"#N/A"}},{"$f":"IFERROR(AVERAGEIFS(dados[CÊNT./QUILÓMETRO],dados[DATA],G36,dados[ATIVIDADE],$J$8),NA())","v":{"$error":"#N/A"}}]
[{"$nulls":5},28,"2012-05-28",{"$f":"SUMIFS(dados[QUILÓMETROS],dados[DATA],G37,dados[ATIVIDADE],$H$8)","v":0},{"$f":"IFERROR(AVERAGEIFS(dados[Km/L],dados[DATA],G37,dados[ATIVIDADE],$I$8),NA())","v":{"$error":"#N/A"}},{"$f":"IFERROR(AVERAGEIFS(dados[CÊNT./QUILÓMETRO],dados[DATA],G37,dados[ATIVIDADE],$J$8),NA())","v":{"$error":"#N/A"}}]
[{"$nulls":5},29,"2012-05-29",{"$f":"SUMIFS(dados[QUILÓMETROS],dados[DATA],G38,dados[ATIVIDADE],$H$8)","v":0},{"$f":"IFERROR(AVERAGEIFS(dados[Km/L],dados[DATA],G38,dados[ATIVIDADE],$I$8),NA())","v":{"$error":"#N/A"}},{"$f":"IFERROR(AVERAGEIFS(dados[CÊNT./QUILÓMETRO],dados[DATA],G38,dados[ATIVIDADE],$J$8),NA())","v":{"$error":"#N/A"}}]
[{"$nulls":5},30,"2012-05-30",{"$f":"SUMIFS(dados[QUILÓMETROS],dados[DATA],G39,dados[ATIVIDADE],$H$8)","v":0},{"$f":"IFERROR(AVERAGEIFS(dados[Km/L],dados[DATA],G39,dados[ATIVIDADE],$I$8),NA())","v":{"$error":"#N/A"}},{"$f":"IFERROR(AVERAGEIFS(dados[CÊNT./QUILÓMETRO],dados[DATA],G39,dados[ATIVIDADE],$J$8),NA())","v":{"$error":"#N/A"}}]
[{"$nulls":5},31,"2012-05-31",{"$f":"SUMIFS(dados[QUILÓMETROS],dados[DATA],G40,dados[ATIVIDADE],$H$8)","v":0},{"$f":"IFERROR(AVERAGEIFS(dados[Km/L],dados[DATA],G40,dados[ATIVIDADE],$I$8),NA())","v":{"$error":"#N/A"}},{"$f":"IFERROR(AVERAGEIFS(dados[CÊNT./QUILÓMETRO],dados[DATA],G40,dados[ATIVIDADE],$J$8),NA())","v":{"$error":"#N/A"}}]
[{"$nulls":5},32,"2012-06-01",{"$f":"SUMIFS(dados[QUILÓMETROS],dados[DATA],G41,dados[ATIVIDADE],$H$8)","v":0},{"$f":"IFERROR(AVERAGEIFS(dados[Km/L],dados[DATA],G41,dados[ATIVIDADE],$I$8),NA())","v":{"$error":"#N/A"}},{"$f":"IFERROR(AVERAGEIFS(dados[CÊNT./QUILÓMETRO],dados[DATA],G41,dados[ATIVIDADE],$J$8),NA())","v":{"$error":"#N/A"}}]
[{"$nulls":5},33,"2012-06-02",{"$f":"SUMIFS(dados[QUILÓMETROS],dados[DATA],G42,dados[ATIVIDADE],$H$8)","v":0},{"$f":"IFERROR(AVERAGEIFS(dados[Km/L],dados[DATA],G42,dados[ATIVIDADE],$I$8),NA())","v":{"$error":"#N/A"}},{"$f":"IFERROR(AVERAGEIFS(dados[CÊNT./QUILÓMETRO],dados[DATA],G42,dados[ATIVIDADE],$J$8),NA())","v":{"$error":"#N/A"}}]
[{"$nulls":5},34,{"$f":"G42+1","v":"2012-06-03"},{"$f":"SUMIFS(dados[QUILÓMETROS],dados[DATA],G43,dados[ATIVIDADE],$H$8)","v":0},{"$f":"IFERROR(AVERAGEIFS(dados[Km/L],dados[DATA],G43,dados[ATIVIDADE],$I$8),NA())","v":{"$error":"#N/A"}},{"$f":"IFERROR(AVERAGEIFS(dados[CÊNT./QUILÓMETRO],dados[DATA],G43,dados[ATIVIDADE],$J$8),NA())","v":{"$error":"#N/A"}}]
[{"$nulls":5},35,"2012-06-04",{"$f":"SUMIFS(dados[QUILÓMETROS],dados[DATA],G44,dados[ATIVIDADE],$H$8)","v":0},{"$f":"IFERROR(AVERAGEIFS(dados[Km/L],dados[DATA],G44,dados[ATIVIDADE],$I$8),NA())","v":{"$error":"#N/A"}},{"$f":"IFERROR(AVERAGEIFS(dados[CÊNT./QUILÓMETRO],dados[DATA],G44,dados[ATIVIDADE],$J$8),NA())","v":{"$error":"#N/A"}}]
[{"$nulls":5},36,"2012-06-05",{"$f":"SUMIFS(dados[QUILÓMETROS],dados[DATA],G45,dados[ATIVIDADE],$H$8)","v":0},{"$f":"IFERROR(AVERAGEIFS(dados[Km/L],dados[DATA],G45,dados[ATIVIDADE],$I$8),NA())","v":{"$error":"#N/A"}},{"$f":"IFERROR(AVERAGEIFS(dados[CÊNT./QUILÓMETRO],dados[DATA],G45,dados[ATIVIDADE],$J$8),NA())","v":{"$error":"#N/A"}}]
[{"$nulls":5},37,"2012-06-06",{"$f":"SUMIFS(dados[QUILÓMETROS],dados[DATA],G46,dados[ATIVIDADE],$H$8)","v":0},{"$f":"IFERROR(AVERAGEIFS(dados[Km/L],dados[DATA],G46,dados[ATIVIDADE],$I$8),NA())","v":{"$error":"#N/A"}},{"$f":"IFERROR(AVERAGEIFS(dados[CÊNT./QUILÓMETRO],dados[DATA],G46,dados[ATIVIDADE],$J$8),NA())","v":{"$error":"#N/A"}}]
[{"$nulls":5},38,"2012-06-07",{"$f":"SUMIFS(dados[QUILÓMETROS],dados[DATA],G47,dados[ATIVIDADE],$H$8)","v":0},{"$f":"IFERROR(AVERAGEIFS(dados[Km/L],dados[DATA],G47,dados[ATIVIDADE],$I$8),NA())","v":{"$error":"#N/A"}},{"$f":"IFERROR(AVERAGEIFS(dados[CÊNT./QUILÓMETRO],dados[DATA],G47,dados[ATIVIDADE],$J$8),NA())","v":{"$error":"#N/A"}}]
[{"$nulls":5},39,"2012-06-08",{"$f":"SUMIFS(dados[QUILÓMETROS],dados[DATA],G48,dados[ATIVIDADE],$H$8)","v":0},{"$f":"IFERROR(AVERAGEIFS(dados[Km/L],dados[DATA],G48,dados[ATIVIDADE],$I$8),NA())","v":{"$error":"#N/A"}},{"$f":"IFERROR(AVERAGEIFS(dados[CÊNT./QUILÓMETRO],dados[DATA],G48,dados[ATIVIDADE],$J$8),NA())","v":{"$error":"#N/A"}}]
[{"$nulls":5},40,"2012-06-09",{"$f":"SUMIFS(dados[QUILÓMETROS],dados[DATA],G49,dados[ATIVIDADE],$H$8)","v":0},{"$f":"IFERROR(AVERAGEIFS(dados[Km/L],dados[DATA],G49,dados[ATIVIDADE],$I$8),NA())","v":{"$error":"#N/A"}},{"$f":"IFERROR(AVERAGEIFS(dados[CÊNT./QUILÓMETRO],dados[DATA],G49,dados[ATIVIDADE],$J$8),NA())","v":{"$error":"#N/A"}}]
[{"$nulls":5},41,"2012-06-10",{"$f":"SUMIFS(dados[QUILÓMETROS],dados[DATA],G50,dados[ATIVIDADE],$H$8)","v":0},{"$f":"IFERROR(AVERAGEIFS(dados[Km/L],dados[DATA],G50,dados[ATIVIDADE],$I$8),NA())","v":{"$error":"#N/A"}},{"$f":"IFERROR(AVERAGEIFS(dados[CÊNT./QUILÓMETRO],dados[DATA],G50,dados[ATIVIDADE],$J$8),NA())","v":{"$error":"#N/A"}}]
[{"$nulls":5},42,"2012-06-11",{"$f":"SUMIFS(dados[QUILÓMETROS],dados[DATA],G51,dados[ATIVIDADE],$H$8)","v":0},{"$f":"IFERROR(AVERAGEIFS(dados[Km/L],dados[DATA],G51,dados[ATIVIDADE],$I$8),NA())","v":{"$error":"#N/A"}},{"$f":"IFERROR(AVERAGEIFS(dados[CÊNT./QUILÓMETRO],dados[DATA],G51,dados[ATIVIDADE],$J$8),NA())","v":{"$error":"#N/A"}}]
[{"$nulls":5},43,"2012-06-12",{"$f":"SUMIFS(dados[QUILÓMETROS],dados[DATA],G52,dados[ATIVIDADE],$H$8)","v":0},{"$f":"IFERROR(AVERAGEIFS(dados[Km/L],dados[DATA],G52,dados[ATIVIDADE],$I$8),NA())","v":{"$error":"#N/A"}},{"$f":"IFERROR(AVERAGEIFS(dados[CÊNT./QUILÓMETRO],dados[DATA],G52,dados[ATIVIDADE],$J$8),NA())","v":{"$error":"#N/A"}}]
[{"$nulls":5},44,"2012-06-13",{"$f":"SUMIFS(dados[QUILÓMETROS],dados[DATA],G53,dados[ATIVIDADE],$H$8)","v":0},{"$f":"IFERROR(AVERAGEIFS(dados[Km/L],dados[DATA],G53,dados[ATIVIDADE],$I$8),NA())","v":{"$error":"#N/A"}},{"$f":"IFERROR(AVERAGEIFS(dados[CÊNT./QUILÓMETRO],dados[DATA],G53,dados[ATIVIDADE],$J$8),NA())","v":{"$error":"#N/A"}}]
[{"$nulls":5},45,"2012-06-14",{"$f":"SUMIFS(dados[QUILÓMETROS],dados[DATA],G54,dados[ATIVIDADE],$H$8)","v":0},{"$f":"IFERROR(AVERAGEIFS(dados[Km/L],dados[DATA],G54,dados[ATIVIDADE],$I$8),NA())","v":{"$error":"#N/A"}},{"$f":"IFERROR(AVERAGEIFS(dados[CÊNT./QUILÓMETRO],dados[DATA],G54,dados[ATIVIDADE],$J$8),NA())","v":{"$error":"#N/A"}}]
[{"$nulls":5},46,"2012-06-15",{"$f":"SUMIFS(dados[QUILÓMETROS],dados[DATA],G55,dados[ATIVIDADE],$H$8)","v":0},{"$f":"IFERROR(AVERAGEIFS(dados[Km/L],dados[DATA],G55,dados[ATIVIDADE],$I$8),NA())","v":{"$error":"#N/A"}},{"$f":"IFERROR(AVERAGEIFS(dados[CÊNT./QUILÓMETRO],dados[DATA],G55,dados[ATIVIDADE],$J$8),NA())","v":{"$error":"#N/A"}}]
[{"$nulls":5},47,"2012-06-16",{"$f":"SUMIFS(dados[QUILÓMETROS],dados[DATA],G56,dados[ATIVIDADE],$H$8)","v":0},{"$f":"IFERROR(AVERAGEIFS(dados[Km/L],dados[DATA],G56,dados[ATIVIDADE],$I$8),NA())","v":{"$error":"#N/A"}},{"$f":"IFERROR(AVERAGEIFS(dados[CÊNT./QUILÓMETRO],dados[DATA],G56,dados[ATIVIDADE],$J$8),NA())","v":{"$error":"#N/A"}}]
[{"$nulls":5},48,"2012-06-17",{"$f":"SUMIFS(dados[QUILÓMETROS],dados[DATA],G57,dados[ATIVIDADE],$H$8)","v":0},{"$f":"IFERROR(AVERAGEIFS(dados[Km/L],dados[DATA],G57,dados[ATIVIDADE],$I$8),NA())","v":{"$error":"#N/A"}},{"$f":"IFERROR(AVERAGEIFS(dados[CÊNT./QUILÓMETRO],dados[DATA],G57,dados[ATIVIDADE],$J$8),NA())","v":{"$error":"#N/A"}}]
[{"$nulls":5},49,"2012-06-18",{"$f":"SUMIFS(dados[QUILÓMETROS],dados[DATA],G58,dados[ATIVIDADE],$H$8)","v":0},{"$f":"IFERROR(AVERAGEIFS(dados[Km/L],dados[DATA],G58,dados[ATIVIDADE],$I$8),NA())","v":{"$error":"#N/A"}},{"$f":"IFERROR(AVERAGEIFS(dados[CÊNT./QUILÓMETRO],dados[DATA],G58,dados[ATIVIDADE],$J$8),NA())","v":{"$error":"#N/A"}}]
[{"$nulls":5},50,"2012-06-19",{"$f":"SUMIFS(dados[QUILÓMETROS],dados[DATA],G59,dados[ATIVIDADE],$H$8)","v":0},{"$f":"IFERROR(AVERAGEIFS(dados[Km/L],dados[DATA],G59,dados[ATIVIDADE],$I$8),NA())","v":{"$error":"#N/A"}},{"$f":"IFERROR(AVERAGEIFS(dados[CÊNT./QUILÓMETRO],dados[DATA],G59,dados[ATIVIDADE],$J$8),NA())","v":{"$error":"#N/A"}}]
[{"$nulls":5},51,"2012-06-20",{"$f":"SUMIFS(dados[QUILÓMETROS],dados[DATA],G60,dados[ATIVIDADE],$H$8)","v":0},{"$f":"IFERROR(AVERAGEIFS(dados[Km/L],dados[DATA],G60,dados[ATIVIDADE],$I$8),NA())","v":{"$error":"#N/A"}},{"$f":"IFERROR(AVERAGEIFS(dados[CÊNT./QUILÓMETRO],dados[DATA],G60,dados[ATIVIDADE],$J$8),NA())","v":{"$error":"#N/A"}}]
[{"$nulls":5},52,"2012-06-21",{"$f":"SUMIFS(dados[QUILÓMETROS],dados[DATA],G61,dados[ATIVIDADE],$H$8)","v":0},{"$f":"IFERROR(AVERAGEIFS(dados[Km/L],dados[DATA],G61,dados[ATIVIDADE],$I$8),NA())","v":{"$error":"#N/A"}},{"$f":"IFERROR(AVERAGEIFS(dados[CÊNT./QUILÓMETRO],dados[DATA],G61,dados[ATIVIDADE],$J$8),NA())","v":{"$error":"#N/A"}}]
[{"$nulls":5},53,"2012-06-22",{"$f":"SUMIFS(dados[QUILÓMETROS],dados[DATA],G62,dados[ATIVIDADE],$H$8)","v":0},{"$f":"IFERROR(AVERAGEIFS(dados[Km/L],dados[DATA],G62,dados[ATIVIDADE],$I$8),NA())","v":{"$error":"#N/A"}},{"$f":"IFERROR(AVERAGEIFS(dados[CÊNT./QUILÓMETRO],dados[DATA],G62,dados[ATIVIDADE],$J$8),NA())","v":{"$error":"#N/A"}}]
[{"$nulls":5},54,"2012-06-23",{"$f":"SUMIFS(dados[QUILÓMETROS],dados[DATA],G63,dados[ATIVIDADE],$H$8)","v":0},{"$f":"IFERROR(AVERAGEIFS(dados[Km/L],dados[DATA],G63,dados[ATIVIDADE],$I$8),NA())","v":{"$error":"#N/A"}},{"$f":"IFERROR(AVERAGEIFS(dados[CÊNT./QUILÓMETRO],dados[DATA],G63,dados[ATIVIDADE],$J$8),NA())","v":{"$error":"#N/A"}}]
[{"$nulls":5},55,"2012-06-24",{"$f":"SUMIFS(dados[QUILÓMETROS],dados[DATA],G64,dados[ATIVIDADE],$H$8)","v":0},{"$f":"IFERROR(AVERAGEIFS(dados[Km/L],dados[DATA],G64,dados[ATIVIDADE],$I$8),NA())","v":{"$error":"#N/A"}},{"$f":"IFERROR(AVERAGEIFS(dados[CÊNT./QUILÓMETRO],dados[DATA],G64,dados[ATIVIDADE],$J$8),NA())","v":{"$error":"#N/A"}}]
[{"$nulls":5},56,"2012-06-25",{"$f":"SUMIFS(dados[QUILÓMETROS],dados[DATA],G65,dados[ATIVIDADE],$H$8)","v":0},{"$f":"IFERROR(AVERAGEIFS(dados[Km/L],dados[DATA],G65,dados[ATIVIDADE],$I$8),NA())","v":{"$error":"#N/A"}},{"$f":"IFERROR(AVERAGEIFS(dados[CÊNT./QUILÓMETRO],dados[DATA],G65,dados[ATIVIDADE],$J$8),NA())","v":{"$error":"#N/A"}}]
[{"$nulls":5},57,"2012-06-26",{"$f":"SUMIFS(dados[QUILÓMETROS],dados[DATA],G66,dados[ATIVIDADE],$H$8)","v":0},{"$f":"IFERROR(AVERAGEIFS(dados[Km/L],dados[DATA],G66,dados[ATIVIDADE],$I$8),NA())","v":{"$error":"#N/A"}},{"$f":"IFERROR(AVERAGEIFS(dados[CÊNT./QUILÓMETRO],dados[DATA],G66,dados[ATIVIDADE],$J$8),NA())","v":{"$error":"#N/A"}}]
[{"$nulls":5},58,"2012-06-27",{"$f":"SUMIFS(dados[QUILÓMETROS],dados[DATA],G67,dados[ATIVIDADE],$H$8)","v":0},{"$f":"IFERROR(AVERAGEIFS(dados[Km/L],dados[DATA],G67,dados[ATIVIDADE],$I$8),NA())","v":{"$error":"#N/A"}},{"$f":"IFERROR(AVERAGEIFS(dados[CÊNT./QUILÓMETRO],dados[DATA],G67,dados[ATIVIDADE],$J$8),NA())","v":{"$error":"#N/A"}}]
[{"$nulls":5},59,"2012-06-28",{"$f":"SUMIFS(dados[QUILÓMETROS],dados[DATA],G68,dados[ATIVIDADE],$H$8)","v":0},{"$f":"IFERROR(AVERAGEIFS(dados[Km/L],dados[DATA],G68,dados[ATIVIDADE],$I$8),NA())","v":{"$error":"#N/A"}},{"$f":"IFERROR(AVERAGEIFS(dados[CÊNT./QUILÓMETRO],dados[DATA],G68,dados[ATIVIDADE],$J$8),NA())","v":{"$error":"#N/A"}}]
[{"$nulls":5},60,"2012-06-29",{"$f":"SUMIFS(dados[QUILÓMETROS],dados[DATA],G69,dados[ATIVIDADE],$H$8)","v":0},{"$f":"IFERROR(AVERAGEIFS(dados[Km/L],dados[DATA],G69,dados[ATIVIDADE],$I$8),NA())","v":{"$error":"#N/A"}},{"$f":"IFERROR(AVERAGEIFS(dados[CÊNT./QUILÓMETRO],dados[DATA],G69,dados[ATIVIDADE],$J$8),NA())","v":{"$error":"#N/A"}}]